bitfinex-derivatives/quotes_BTCF0:USTF0_20251207
["timestamp","ask_amount","ask_price","bid_price","bid_amount"]
[1765111153496,0.05476,89323.0,89321.0,0.06022235]
[1765111153805,0.44476,89323.0,89322.0,0.0558]
[1765111154307,0.44476,89323.0,89322.0,0.0669945]
[1765111155812,0.44576,89323.0,89322.0,0.0669945]
[1765111156009,0.44576,89323.0,89322.0,0.0558]
[1765111156211,0.44576,89323.0,89322.0,0.07313]
[1765111156405,0.44476,89323.0,89322.0,0.07313]
[1765111158211,0.44576,89323.0,89322.0,0.07313]
[1765111158712,0.44476,89323.0,89322.0,0.07313]
[1765111164416,0.44576,89323.0,89322.0,0.07313]
[1765111164918,0.44476,89323.0,89322.0,0.07313]
[1765111170522,0.05476,89332.0,89331.0,0.0558]
[1765111170728,0.45476,89332.0,89331.0,0.0558]
[1765111174229,0.45476,89332.0,89331.0,0.0568]
[1765111179931,0.47886801,89332.0,89331.0,0.0568]
[1765111180322,0.47886801,89332.0,89331.0,0.02808]
[1765111180530,0.47886801,89332.0,89331.0,0.0568]
[1765111180832,0.47886801,89332.0,89331.0,0.0558]
[1765111181330,0.47886801,89332.0,89331.0,0.07313]
[1765111183832,0.47886801,89332.0,89331.0,0.0558]
[1765111187831,0.47886801,89332.0,89331.0,0.02708]
[1765111188032,0.05476,89329.0,89328.0,0.05742]
[1765111188229,0.47886801,89329.0,89328.0,0.05742]
[1765111190227,0.47886801,89329.0,89328.0,0.07453]
[1765111190628,0.47986801,89329.0,89328.0,0.07453]
[1765111191141,0.47886801,89329.0,89328.0,0.07453]
[1765111191329,0.47886801,89329.0,89328.0,0.07553]
[1765111194442,0.47886801,89329.0,89328.0,0.43533]
[1765111194743,0.47886801,89329.0,89328.0,0.43633]
[1765111194944,0.47886801,89329.0,89328.0,0.43733]
[1765111195442,0.00016797,89336.0,89335.0,0.05742]
[1765111195443,0.05492797,89336.0,89335.0,0.05742]
[1765111195636,0.50903377,89336.0,89335.0,0.05742]
[1765111196337,0.48492797,89336.0,89335.0,0.0686129]
[1765111196535,0.48592797,89336.0,89335.0,0.0686129]
[1765111197339,0.43116797,89336.0,89335.0,0.0686129]
[1765111198139,0.43016797,89336.0,89335.0,0.0686129]
[1765111198343,0.45754797,89336.0,89335.0,0.0726129]
[1765111198543,0.48492797,89336.0,89335.0,0.0726129]
[1765111199338,0.48492797,89336.0,89335.0,0.4334129]
[1765111201836,0.00016797,89336.0,89335.0,0.4334129]
[1765111202238,0.00016797,89336.0,89335.0,0.49363525]
[1765111202540,0.00016797,89336.0,89335.0,0.4334129]
[1765111203043,0.00016797,89336.0,89335.0,0.8424129]
[1765111204146,0.00016797,89336.0,89335.0,0.8434129]
[1765111204640,0.00016797,89336.0,89335.0,0.8424129]
[1765111204944,0.00016797,89336.0,89335.0,0.8444129]
[1765111205144,0.00016797,89336.0,89335.0,0.90455635]
[1765111208138,0.00016797,89336.0,89335.0,0.8444129]
[1765111208338,0.00016797,89336.0,89335.0,0.90455635]
[1765111209940,0.00016797,89336.0,89335.0,0.8444129]
[1765111212148,0.00016797,89336.0,89335.0,0.6244129]
[1765111212751,0.05492797,89336.0,89335.0,0.9531729]
[1765111212951,0.45492797,89336.0,89335.0,0.42322]
[1765111213747,0.47902109,89336.0,89335.0,0.3658]
[1765111214051,0.47902109,89336.0,89335.0,0.003]
[1765111215453,0.48102109,89336.0,89335.0,0.002]
[1765111215755,0.05476,89328.0,89327.0,0.4158]
[1765111216056,0.44476,89328.0,89327.0,0.4158]
[1765111222367,0.44476,89328.0,89327.0,0.4178]
[1765111223069,0.44476,89328.0,89327.0,0.4168]
[1765111223258,0.44476,89328.0,89327.0,0.4178]
[1765111226160,0.44476,89328.0,89327.0,0.4168]
[1765111226360,0.44476,89328.0,89327.0,0.4158]
[1765111226561,0.44476,89328.0,89327.0,0.056]
[1765111233773,0.13738,89328.0,89327.0,0.056]
[1765111234367,0.36096797,89336.0,89327.0,0.056]
[1765111234368,0.05492797,89336.0,89335.0,0.0661929]
[1765111234567,0.41492797,89336.0,89335.0,0.055]
[1765111235777,0.41692797,89336.0,89335.0,0.055]
[1765111236478,0.41492797,89336.0,89335.0,0.056]
[1765111236879,0.41592797,89336.0,89335.0,0.056]
[1765111237670,0.41492797,89336.0,89335.0,0.056]
[1765111238480,0.41492797,89336.0,89335.0,0.055]
[1765111238667,0.41492797,89336.0,89335.0,0.056]
[1765111240179,0.43938586,89336.0,89335.0,0.057]
[1765111241671,0.43938586,89336.0,89335.0,0.056]
[1765111241868,0.38462586,89336.0,89335.0,0.001]
[1765111242069,0.43938586,89336.0,89335.0,0.001]
[1765111242477,0.05476,89327.0,89326.0,0.0111939]
[1765111242776,0.47476,89327.0,89326.0,0.0111939]
[1765111243080,0.05476,89326.0,89325.0,0.06014345]
[1765111243281,0.07068,89324.0,89323.0,0.3608]
[1765111243580,0.5151653,89324.0,89323.0,0.3608]
[1765111244183,0.05476,89317.0,89316.0,0.08892345]
[1765111244383,0.47476,89317.0,89316.0,0.11768345]
[1765111244780,0.47476,89317.0,89316.0,0.05754]
[1765111245487,0.47476,89317.0,89316.0,0.07426]
[1765111245987,0.47476,89317.0,89316.0,0.13440345]
[1765111247179,0.47476,89317.0,89316.0,0.13540345]
[1765111248087,0.47476,89317.0,89316.0,0.13740345]
[1765111248387,0.47476,89317.0,89316.0,0.07726]
[1765111249091,0.47476,89317.0,89316.0,0.07526]
[1765111249387,0.47476,89317.0,89316.0,0.07726]
[1765111249591,0.47476,89317.0,89316.0,0.43806]
[1765111250792,0.47476,89317.0,89316.0,0.43706]
[1765111250990,0.47476,89317.0,89316.0,0.43806]
[1765111251482,0.47476,89317.0,89316.0,0.43606]
[1765111251683,0.47476,89317.0,89316.0,0.43806]
[1765111252091,0.47476,89317.0,89316.0,0.43606]
[1765111252285,0.47476,89317.0,89316.0,0.43706]
[1765111252485,0.47476,89317.0,89316.0,0.43806]
[1765111253085,0.47476,89317.0,89316.0,0.43706]
[1765111253287,0.47476,89317.0,89316.0,0.43806]
[1765111253886,0.47476,89317.0,89316.0,0.43706]
[1765111254193,0.47476,89317.0,89316.0,0.43806]
[1765111254399,0.47476,89317.0,89316.0,0.43606]
[1765111254593,0.47476,89317.0,89316.0,0.43806]
[1765111254984,0.47476,89317.0,89316.0,0.43606]
[1765111255185,0.47476,89317.0,89316.0,0.43806]
[1765111256391,0.47476,89317.0,89316.0,0.43706]
[1765111256592,0.47476,89317.0,89316.0,0.43806]
[1765111257785,0.47476,89317.0,89316.0,0.43606]
[1765111257981,0.47476,89317.0,89316.0,0.43806]
[1765111258186,0.47476,89317.0,89316.0,0.43706]
[1765111258385,0.47476,89317.0,89316.0,0.43606]
[1765111258586,0.47476,89317.0,89316.0,0.43906]
[1765111259197,0.47476,89317.0,89316.0,0.43806]
[1765111259386,0.47476,89317.0,89316.0,0.43906]
[1765111259999,0.47476,89317.0,89316.0,0.43806]
[1765111260197,0.47476,89317.0,89316.0,0.43906]
[1765111260600,0.47476,89317.0,89316.0,0.43806]
[1765111261101,0.47476,89317.0,89316.0,0.43606]
[1765111261400,0.47476,89317.0,89316.0,0.43806]
[1765111262692,0.47476,89317.0,89316.0,0.43706]
[1765111262894,0.47476,89317.0,89316.0,0.43806]
[1765111264804,0.47476,89317.0,89316.0,0.43706]
[1765111265110,0.47476,89317.0,89316.0,0.43806]
[1765111265805,0.47476,89317.0,89316.0,0.43706]
[1765111266805,0.47476,89317.0,89316.0,0.43606]
[1765111267306,0.47476,89317.0,89316.0,0.43506]
[1765111270101,0.47476,89317.0,89316.0,0.49520345]
[1765111270607,0.47476,89317.0,89316.0,0.13440345]
[1765111271198,0.47476,89317.0,89316.0,0.07426]
[1765111279519,0.47476,89317.0,89316.0,0.07626]
[1765111280010,0.47476,89317.0,89316.0,0.07726]
[1765111280210,0.47476,89317.0,89316.0,0.07626]
[1765111280416,0.47476,89317.0,89316.0,0.07726]
[1765111280715,0.47476,89317.0,89316.0,0.07626]
[1765111282014,0.47476,89317.0,89316.0,0.07526]
[1765111282215,0.47476,89317.0,89316.0,0.07726]
[1765111282619,0.47476,89317.0,89316.0,0.07626]
[1765111282818,0.47476,89317.0,89316.0,0.07726]
[1765111283423,0.47476,89317.0,89316.0,0.07626]
[1765111283626,0.47476,89317.0,89316.0,0.07526]
[1765111283828,0.47476,89317.0,89316.0,0.07726]
[1765111285320,0.47476,89317.0,89316.0,0.07626]
[1765111285925,0.47476,89317.0,89316.0,0.07526]
[1765111286132,0.47476,89317.0,89316.0,0.07626]
[1765111288534,0.47476,89317.0,89316.0,0.43706]
[1765111292629,0.47476,89317.0,89316.0,0.43606]
[1765111295030,0.47476,89317.0,89316.0,0.43506]
[1765111295228,0.47476,89317.0,89316.0,0.43606]
[1765111295639,0.47476,89317.0,89316.0,0.43506]
[1765111295936,0.47476,89317.0,89316.0,0.43606]
[1765111296237,0.47476,89317.0,89316.0,0.43506]
[1765111296424,0.47476,89317.0,89316.0,0.43606]
[1765111296629,0.47476,89317.0,89316.0,0.43706]
[1765111296830,0.47476,89317.0,89316.0,0.43606]
[1765111297031,0.47476,89317.0,89316.0,0.43706]
[1765111298027,0.47476,89317.0,89316.0,0.43606]
[1765111298230,0.47476,89317.0,89316.0,0.43706]
[1765111298429,0.47476,89317.0,89316.0,0.43906]
[1765111301761,0.47476,89317.0,89316.0,0.43806]
[1765111302446,0.47476,89317.0,89316.0,0.43606]
[1765111307944,0.22,89317.0,89316.0,0.43606]
[1765111310944,0.41546,89332.0,89331.0,0.02839]
[1765111311146,0.81971006,89332.0,89331.0,0.05585]
[1765111312137,0.82471006,89332.0,89331.0,0.05585]
[1765111312539,0.46391006,89332.0,89331.0,0.05585]
[1765111313153,0.46691006,89332.0,89331.0,0.05585]
[1765111313948,0.46491006,89332.0,89331.0,0.05585]
[1765111314148,0.45991006,89332.0,89331.0,0.05585]
[1765111314348,0.46091006,89332.0,89331.0,0.05585]
[1765111314848,0.45991006,89332.0,89331.0,0.05585]
[1765111315044,0.46091006,89332.0,89331.0,0.05585]
[1765111315238,0.46091006,89332.0,89331.0,0.02839]
[1765111315440,0.40625006,89332.0,89327.0,0.05585]
[1765111315640,0.05466,89328.0,89327.0,0.05585]
[1765111315845,0.45891006,89328.0,89327.0,0.05585]
[1765111318743,0.45991006,89328.0,89327.0,0.05585]
[1765111321650,0.49991006,89328.0,89327.0,0.05585]
[1765111322342,0.49891006,89328.0,89327.0,0.05585]
[1765111323753,0.49891006,89328.0,89327.0,0.05685]
[1765111324450,0.49891006,89328.0,89327.0,0.05885]
[1765111325540,0.49891006,89328.0,89327.0,0.05685]
[1765111325745,0.49891006,89328.0,89327.0,0.05785]
[1765111325950,0.49891006,89328.0,89327.0,0.05685]
[1765111327050,0.49891006,89328.0,89327.0,0.05585]
[1765111327252,0.49891006,89328.0,89327.0,0.05685]
[1765111329650,0.51037006,89328.0,89327.0,0.001]
[1765111330246,0.49891006,89328.0,89327.0,0.001]
[1765111330653,0.49891006,89328.0,89318.0,0.07150376]
[1765111330654,0.05476,89319.0,89318.0,0.12685376]
[1765111330854,0.45476,89319.0,89318.0,0.12685376]
[1765111332054,0.45476,89319.0,89318.0,0.12785376]
[1765111333951,0.14476,89319.0,89318.0,0.0665449]
[1765111334159,0.09,89319.0,89318.0,0.0675449]
[1765111334554,0.09,89319.0,89318.0,0.0665449]
[1765111334760,0.09,89319.0,89318.0,0.0675449]
[1765111335153,0.00016797,89336.0,89335.0,0.05651]
[1765111335356,0.45910605,89336.0,89335.0,0.05651]
[1765111336865,0.46010605,89336.0,89335.0,0.05651]
[1765111337652,0.46110605,89336.0,89335.0,0.05651]
[1765111339461,0.05476,89329.0,89328.0,0.07383]
[1765111339653,0.45893808,89329.0,89328.0,0.05651]
[1765111341064,0.45893808,89329.0,89328.0,0.05751]
[1765111341863,0.45893808,89329.0,89328.0,0.001]
[1765111342664,0.05476,89327.0,89326.0,0.0402539]
[1765111342964,0.45893808,89327.0,89326.0,0.0402539]
[1765111344869,0.45893808,89327.0,89326.0,0.02906]
[1765111345663,0.45893808,89327.0,89326.0,0.05651]
[1765111347168,0.45893808,89327.0,89326.0,0.05751]
[1765111350073,0.45893808,89327.0,89326.0,0.05651]
[1765111350273,0.45893808,89327.0,89326.0,0.05751]
[1765111352175,0.45893808,89327.0,89326.0,0.05651]
[1765111352375,0.45893808,89327.0,89326.0,0.05751]
[1765111352878,0.45893808,89327.0,89326.0,0.05651]
[1765111353070,0.45893808,89327.0,89326.0,0.05751]
[1765111354077,0.45893808,89327.0,89326.0,0.05851]
[1765111354584,0.45893808,89327.0,89326.0,0.05751]
[1765111354771,0.45893808,89327.0,89326.0,0.05851]
[1765111362881,0.07893808,89327.0,89326.0,0.05851]
[1765111363086,0.02738,89327.0,89326.0,0.11879383]
[1765111363487,0.022482,89327.0,89326.0,0.11879383]
[1765111363788,0.022482,89327.0,89326.0,0.05851]
[1765111364380,0.044962,89327.0,89326.0,0.05851]
[1765111366385,0.044962,89327.0,89326.0,0.41931]
[1765111369091,0.022482,89327.0,89326.0,0.41931]
[1765111370088,0.022482,89327.0,89326.0,0.79931]
[1765111370591,0.04512797,89336.0,89335.0,0.05758]
[1765111370790,0.43927064,89336.0,89335.0,0.41838]
[1765111371886,0.44027064,89336.0,89335.0,0.4295729]
[1765111372596,0.44127064,89336.0,89335.0,0.4295729]
[1765111373495,0.43927064,89336.0,89335.0,0.4315729]
[1765111374198,0.43927064,89336.0,89335.0,0.4305729]
[1765111374500,0.41512797,89336.0,89335.0,0.4315729]
[1765111375584,0.00016797,89336.0,89335.0,0.9503729]
[1765111375785,0.00016797,89336.0,89335.0,1.01062456]
[1765111376294,0.00016797,89336.0,89335.0,1.0105823]
[1765111376994,0.00016797,89336.0,89335.0,0.9503729]
[1765111377788,0.00016797,89336.0,89335.0,1.3703729]
[1765111378589,0.00016797,89336.0,89335.0,0.9503729]
[1765111378800,0.00016797,89336.0,89335.0,1.0503729]
[1765111379386,0.00016797,89336.0,89335.0,1.3203729]
[1765111380284,0.06068774,89366.0,89364.0,0.02948]
[1765111380485,0.06940769,89365.0,89364.0,0.02948]
[1765111380694,0.44940769,89365.0,89364.0,0.02948]
[1765111381695,0.45540769,89365.0,89364.0,0.02948]
[1765111382691,0.45040769,89365.0,89364.0,0.02948]
[1765111382885,0.0453,89359.0,89358.0,0.0876299]
[1765111383090,0.4753,89359.0,89358.0,0.0876299]
[1765111384899,0.4753,89359.0,89358.0,0.0886299]
[1765111386000,0.4753,89359.0,89358.0,0.0876299]
[1765111386193,0.4753,89359.0,89358.0,0.0886299]
[1765111387495,0.4753,89359.0,89358.0,0.0876299]
[1765111387701,0.4753,89359.0,89358.0,0.0886299]
[1765111387999,0.4753,89359.0,89358.0,0.0896299]
[1765111388893,0.4753,89359.0,89358.0,0.0886299]
[1765111390497,0.4753,89359.0,89358.0,0.0876299]
[1765111390701,0.4753,89359.0,89358.0,0.0886299]
[1765111392200,0.4753,89359.0,89358.0,0.0876299]
[1765111392398,0.4753,89359.0,89358.0,0.0886299]
[1765111395518,0.2353,89359.0,89358.0,0.0886299]
[1765111396306,0.4253,89359.0,89358.0,0.0886299]
[1765111396712,0.4253,89359.0,89358.0,0.0712099]
[1765111398012,0.4253,89359.0,89358.0,0.0702099]
[1765111400311,0.44927189,89359.0,89358.0,0.0702099]
[1765111402615,0.44927189,89359.0,89358.0,0.0870199]
[1765111413017,0.06927189,89359.0,89358.0,0.0870199]
[1765111413510,0.04662189,89359.0,89358.0,0.0870199]
[1765111414111,0.04662189,89359.0,89358.0,0.0880199]
[1765111414729,0.04662189,89359.0,89358.0,0.14818288]
[1765111415219,0.02265,89359.0,89358.0,0.14818288]
[1765111415922,0.02265,89359.0,89358.0,0.14918288]
[1765111416212,0.02265,89359.0,89358.0,0.0890199]
[1765111418423,0.00027975,89366.0,89365.0,0.0681891]
[1765111418424,0.04557975,89366.0,89365.0,0.0681891]
[1765111418719,0.27960703,89366.0,89365.0,0.0681891]
[1765111419611,0.28060703,89366.0,89365.0,0.0681891]
[1765111419921,0.28060703,89366.0,89365.0,0.4289891]
[1765111426223,0.28060703,89366.0,89365.0,0.4178]
[1765111426419,0.28060703,89366.0,89353.0,0.06016298]
[1765111426420,0.0453,89357.0,89353.0,0.06016298]
[1765111426720,0.0453,89350.0,89349.0,0.3608]
[1765111426923,0.45964783,89350.0,89349.0,0.3608]
[1765111429225,0.46064783,89350.0,89349.0,0.3638]
[1765111429627,0.46064783,89350.0,89349.0,0.3608]
[1765111429825,0.46364783,89350.0,89349.0,0.3608]
[1765111430720,0.4393,89350.0,89349.0,0.3608]
[1765111430912,0.46363191,89350.0,89349.0,0.3608]
[1765111432419,0.46363191,89350.0,89349.0,0.38855]
[1765111433626,0.46363191,89350.0,89349.0,0.02775]
[1765111435516,0.46363191,89350.0,89349.0,0.05764]
[1765111436931,0.46363191,89350.0,89349.0,0.07491]
[1765111438020,0.46263191,89350.0,89349.0,0.07491]
[1765111438838,0.46063191,89350.0,89349.0,0.07491]
[1765111439038,0.4363,89350.0,89349.0,0.07491]
[1765111439537,0.4353,89350.0,89349.0,0.07491]
[1765111440234,0.19961098,89350.0,89349.0,0.07491]
[1765111440734,0.15431098,89350.0,89349.0,0.07491]
[1765111440929,0.02265,89358.0,89357.0,0.05466]
[1765111441135,0.4196085,89358.0,89357.0,0.05466]
[1765111441727,0.1196085,89358.0,89357.0,0.05466]
[1765111442040,0.0696085,89358.0,89357.0,0.05466]
[1765111442431,0.0696085,89358.0,89357.0,0.05566]
[1765111443335,0.4296085,89358.0,89357.0,0.05566]
[1765111444736,0.4296085,89358.0,89357.0,0.05466]
[1765111445036,0.4296085,89358.0,89357.0,0.05566]
[1765111445643,0.4296085,89358.0,89357.0,0.05466]
[1765111450441,0.0453,89355.0,89354.0,0.0387104]
[1765111450640,0.4353,89355.0,89354.0,0.0658504]
[1765111451554,0.4353,89355.0,89354.0,0.0668504]
[1765111451946,0.4353,89355.0,89354.0,0.0658504]
[1765111454757,0.4353,89355.0,89354.0,0.0668504]
[1765111455349,0.4353,89355.0,89354.0,0.0678504]
[1765111456751,0.4353,89355.0,89354.0,0.0688504]
[1765111456957,0.4353,89355.0,89354.0,0.0678504]
[1765111457357,0.4353,89355.0,89354.0,0.0668504]
[1765111457553,0.4353,89355.0,89354.0,0.0688504]
[1765111457746,0.45950356,89355.0,89354.0,0.0688504]
[1765111458148,0.45950356,89355.0,89354.0,0.0678504]
[1765111458352,0.41265,89355.0,89354.0,0.0668504]
[1765111458547,0.41265,89355.0,89354.0,0.0658504]
[1765111458748,0.4353,89355.0,89354.0,0.0668504]
[1765111458962,0.1953,89355.0,89354.0,0.0668504]
[1765111460063,0.1953,89355.0,89354.0,0.0658504]
[1765111460257,0.1953,89355.0,89354.0,0.0668504]
[1765111460965,0.4253,89355.0,89354.0,0.0668504]
[1765111461464,0.4253,89355.0,89354.0,0.0678504]
[1765111461665,0.4253,89355.0,89354.0,0.0688504]
[1765111463372,0.1953,89355.0,89354.0,0.0688504]
[1765111465269,0.3953,89355.0,89354.0,0.0688504]
[1765111466969,0.3953,89355.0,89354.0,0.4296504]
[1765111469181,0.37265,89355.0,89354.0,0.4296504]
[1765111469472,0.08,89355.0,89354.0,0.4296504]
[1765111470272,0.08,89355.0,89354.0,0.48984402]
[1765111473661,0.08,89355.0,89354.0,0.4296504]
[1765111477372,0.08,89355.0,89354.0,0.48982536]
[1765111477667,0.04557975,89366.0,89365.0,0.05684]
[1765111477872,0.0453,89365.0,89364.0,0.42724]
[1765111478072,0.46951857,89365.0,89364.0,0.42724]
[1765111478971,0.46951857,89365.0,89358.0,0.05684]
[1765111478972,0.0453,89359.0,89358.0,0.05684]
[1765111479173,0.46951857,89359.0,89358.0,0.57548]
[1765111480257,0.46951857,89359.0,89358.0,0.57648]
[1765111481564,0.46951857,89359.0,89358.0,0.05784]
[1765111481868,0.46951857,89359.0,89358.0,0.05684]
[1765111483373,0.46971772,89359.0,89358.0,0.05684]
[1765111484364,0.0453,89358.0,89357.0,0.0111901]
[1765111484564,0.0453,89355.0,89354.0,0.93627]
[1765111484764,0.46971772,89355.0,89354.0,0.93627]
[1765111486265,0.46971772,89355.0,89354.0,0.41763]
[1765111488973,0.14441772,89355.0,89354.0,0.42063]
[1765111489376,0.02441772,89355.0,89354.0,0.42063]
[1765111489577,0.06972446,89365.0,89364.0,0.0849092]
[1765111489777,0.48972446,89365.0,89364.0,0.0849092]
[1765111490569,0.44442446,89365.0,89364.0,0.0849092]
[1765111492169,0.44642446,89365.0,89364.0,0.0849092]
[1765111492370,0.26642446,89365.0,89364.0,0.0849092]
[1765111498687,0.28907446,89365.0,89364.0,0.0849092]
[1765111498879,0.26642446,89365.0,89364.0,0.0849092]
[1765111499184,0.31172446,89365.0,89364.0,0.0849092]
[1765111502779,0.07172446,89365.0,89364.0,0.0849092]
[1765111503083,0.002,89365.0,89364.0,0.0849092]
[1765111506176,0.02465,89365.0,89364.0,0.0849092]
[1765111509082,0.0473,89365.0,89364.0,0.0849092]
[1765111516801,0.00027975,89366.0,89364.0,0.0849092]
[1765111516802,0.08056922,89397.0,89396.0,0.05589]
[1765111517099,0.01726,89430.0,89405.0,0.0817241]
[1765111517394,0.01726,89445.0,89405.0,0.0817241]
[1765111517395,0.05878,89440.0,89439.0,0.05589]
[1765111517695,0.05,89448.0,89439.0,0.05589]
[1765111517696,0.0590595,89446.0,89445.0,0.05589]
[1765111517898,0.0294095,89446.0,89445.0,0.41669]
[1765111518086,0.0590595,89446.0,89445.0,0.41669]
[1765111518286,0.0002795,89446.0,89445.0,0.41669]
[1765111518482,0.0590595,89446.0,89445.0,0.93633]
[1765111519391,0.0002795,89446.0,89445.0,0.93629]
[1765111519792,0.0082795,89446.0,89445.0,0.93629]
[1765111521201,0.0082795,89446.0,89445.0,0.41669]
[1765111521501,0.0082795,89446.0,89445.0,0.93621]
[1765111522789,0.0670595,89446.0,89445.0,0.93613]
[1765111523703,0.0670595,89446.0,89445.0,0.41669]
[1765111523893,0.0670595,89446.0,89445.0,0.93605]
[1765111525101,0.0640595,89446.0,89445.0,0.93805]
[1765111525800,0.0640595,89446.0,89445.0,0.93801]
[1765111525999,0.0590595,89446.0,89445.0,0.94301]
[1765111526200,0.0294095,89446.0,89445.0,0.94301]
[1765111526402,0.0294095,89446.0,89445.0,0.93801]
[1765111526601,0.0294095,89446.0,89445.0,0.94201]
[1765111528703,0.0002795,89446.0,89445.0,0.94201]
[1765111529500,0.0002795,89446.0,89445.0,0.42269]
[1765111529705,0.0590595,89446.0,89445.0,0.94189]
[1765111529907,0.0294095,89446.0,89445.0,0.94189]
[1765111530608,0.0002795,89446.0,89445.0,0.94189]
[1765111530909,0.0002795,89446.0,89445.0,0.95654]
[1765111533001,1e-07,89446.0,89445.0,0.95654]
[1765111533204,0.00516785,89448.0,89447.0,0.0398]
[1765111533409,0.00516785,89448.0,89447.0,0.8006]
[1765111534803,0.00516785,89448.0,89447.0,0.6106]
[1765111535113,0.00516785,89448.0,89447.0,0.6126]
[1765111535303,0.00516785,89448.0,89447.0,0.6166]
[1765111537410,0.03429785,89448.0,89447.0,0.6166]
[1765111537715,0.06394785,89448.0,89447.0,1.13568]
[1765111538108,0.00516785,89448.0,89447.0,1.13568]
[1765111547314,0.00516785,89448.0,89447.0,1.19552224]
[1765111548224,0.00516785,89448.0,89447.0,1.13568]
[1765111550926,5e-08,89448.0,89447.0,1.13568]
[1765111556333,0.02984,89470.0,89469.0,0.0398]
[1765111556519,0.05799,89470.0,89469.0,0.95935276]
[1765111556923,0.05799,89470.0,89469.0,0.91944]
[1765111557124,0.05799,89470.0,89469.0,0.99048524]
[1765111557324,0.05799,89470.0,89469.0,0.9306161]
[1765111557524,0.05799,89470.0,89469.0,0.99048524]
[1765111557832,0.06199,89470.0,89469.0,0.99048524]
[1765111558234,0.06199,89470.0,89469.0,0.9306161]
[1765111558426,0.06399,89470.0,89469.0,0.9306161]
[1765111559330,0.06399,89470.0,89469.0,0.99048524]
[1765111559832,0.006,89470.0,89469.0,0.9306161]
[1765111560630,0.00016765,89478.0,89477.0,0.0509751]
[1765111560631,5e-08,89478.0,89477.0,0.0509751]
[1765111560841,0.01784,89496.0,89485.0,0.0509741]
[1765111561028,0.00011157,89486.0,89485.0,0.9400541]
[1765111561228,0.00011157,89486.0,89485.0,1.6616541]
[1765111562029,0.00016765,89494.0,89493.0,0.0509731]
[1765111562335,0.00016765,89494.0,89493.0,1.34045899]
[1765111562526,0.00016765,89494.0,89493.0,1.2808131]
[1765111563130,0.01784,89515.0,89493.0,1.26964]
[1765111563331,0.07497,89515.0,89514.0,0.3608]
[1765111563533,0.07497,89515.0,89514.0,0.87984]
[1765111564730,0.84497,89515.0,89506.0,0.00016765]
[1765111564932,0.05713,89507.0,89506.0,0.00016765]
[1765111565133,0.41713,89507.0,89506.0,0.41320765]
[1765111566541,0.41713,89507.0,89506.0,0.51924765]
[1765111567141,0.41713,89507.0,89506.0,0.00016765]
[1765111567342,0.41713,89507.0,89506.0,0.51920765]
[1765111567640,0.41713,89507.0,89506.0,0.52020765]
[1765111568041,0.41713,89507.0,89506.0,0.51920765]
[1765111568241,0.41713,89507.0,89506.0,0.00116765]
[1765111568439,0.00027925,89526.0,89525.0,0.0576]
[1765111568642,5e-08,89526.0,89525.0,1.73633662]
[1765111568836,5e-08,89526.0,89525.0,1.6482]
[1765111569245,5e-08,89526.0,89525.0,1.65926106]
[1765111569538,0.01784,89556.0,89525.0,1.69881524]
[1765111569739,0.07497,89556.0,89555.0,0.4008154]
[1765111569941,0.07497,89556.0,89555.0,0.9490854]
[1765111571242,0.01784,89574.0,89561.0,0.0576]
[1765111571545,0.06305,89563.0,89562.0,0.0687645]
[1765111571749,0.07305,89563.0,89562.0,0.0687645]
[1765111573146,0.03679,89563.0,89562.0,0.0687645]
[1765111573347,0.06505,89563.0,89562.0,0.0687645]
[1765111574047,0.06705,89563.0,89562.0,0.0687645]
[1765111576443,0.06305,89560.0,89559.0,0.00016755]
[1765111576646,0.46305,89560.0,89559.0,0.00016755]
[1765111577651,0.15605,89560.0,89559.0,0.00016755]
[1765111577855,0.15605,89560.0,89559.0,0.06352755]
[1765111578351,0.06505,89560.0,89559.0,0.06352755]
[1765111578553,0.06605,89560.0,89559.0,0.06352755]
[1765111579154,0.06505,89560.0,89559.0,0.06352755]
[1765111579365,0.44605,89560.0,89559.0,0.06352755]
[1765111580252,0.44405,89560.0,89559.0,0.06352755]
[1765111580452,0.44605,89560.0,89559.0,0.06352755]
[1765111582546,0.44605,89560.0,89559.0,0.00016755]
[1765111585144,0.06305,89555.0,89554.0,0.3608]
[1765111585340,0.44305,89555.0,89554.0,0.3608]
[1765111587057,0.44405,89555.0,89554.0,0.3608]
[1765111587555,0.06305,89552.0,89551.0,0.0111658]
[1765111587743,0.44305,89552.0,89551.0,0.0111658]
[1765111588355,0.38,89552.0,89547.0,0.0467063]
[1765111588555,0.06305,89548.0,89547.0,0.0467063]
[1765111588749,0.46305,89548.0,89547.0,0.0467063]
[1765111588959,0.46305,89548.0,89547.0,0.0745263]
[1765111589355,0.46305,89548.0,89547.0,0.0111663]
[1765111590260,0.46305,89548.0,89547.0,0.0121663]
[1765111590651,0.46305,89548.0,89547.0,0.0477063]
[1765111590847,0.46305,89548.0,89547.0,0.0755263]
[1765111591256,0.46305,89548.0,89547.0,0.0745263]
[1765111592253,0.06305,89547.0,89546.0,0.00016755]
[1765111592454,0.06305,89547.0,89546.0,0.06352755]
[1765111592455,0.48305,89547.0,89546.0,0.06352755]
[1765111593057,0.48305,89547.0,89546.0,0.03570755]
[1765111593655,0.48305,89547.0,89546.0,0.00016755]
[1765111596962,0.06305,89538.0,89537.0,0.39634]
[1765111597266,0.42305,89538.0,89537.0,0.42416]
[1765111597664,0.42305,89538.0,89537.0,0.4539606]
[1765111598064,0.42305,89538.0,89537.0,0.46371418]
[1765111598263,0.42305,89538.0,89537.0,0.46471418]
[1765111599066,0.42305,89538.0,89537.0,0.04055418]
[1765111599067,0.43456,89538.0,89537.0,0.04055418]
[1765111599267,0.06305,89530.0,89529.0,0.00016755]
[1765111599568,0.44305,89530.0,89529.0,0.00016755]
[1765111600562,0.44505,89530.0,89529.0,0.06352755]
[1765111600961,0.44605,89530.0,89529.0,0.03570755]
[1765111601267,0.26605,89530.0,89529.0,0.06352755]
[1765111602666,0.26605,89530.0,89529.0,0.00016755]
[1765111603860,0.26605,89530.0,89529.0,0.03347755]
[1765111604063,0.26605,89530.0,89529.0,0.06641755]
[1765111604860,0.07161,89527.0,89526.0,0.35520469]
[1765111605063,0.07161,89518.0,89509.0,0.011171]